[Event "Early-Titled-Tuesday-Blitz-August-29-2023"]
[Site "Chess.com"]
[Date "2023.08.29"]
[Round "3"]
[White "colegiodemadrid"]
[Black "Larina_Maria"]
[Result "1-0"]
[WhiteElo "2426"]
[BlackElo "2217"]
[TimeControl "180+1"]
[EndTime "8:24:26 PDT"]
[Termination "colegiodemadrid won by resignation"]

1. e4 {[%clk 0:03:00.9]} 1... c6 {[%clk 0:02:58.9]} 2. d4 {[%clk 0:03:00]} 2...
d5 {[%clk 0:02:59.1]} 3. e5 {[%clk 0:03:00.6]} 3... Bf5 {[%clk 0:02:58.8]} 4. h4
{[%clk 0:03:01.1]} 4... h5 {[%clk 0:02:58.7]} 5. Bd3 {[%clk 0:03:00.4]} 5...
Bxd3 {[%clk 0:02:58.8]} 6. Qxd3 {[%clk 0:03:01.3]} 6... e6 {[%clk 0:02:57.2]} 7.
Bg5 {[%clk 0:03:01.5]} 7... Be7 {[%clk 0:02:55.5]} 8. Nf3 {[%clk 0:03:01.7]}
8... Nh6 {[%clk 0:02:54.2]} 9. Nbd2 {[%clk 0:03:01.5]} 9... Nf5 {[%clk
0:02:52.9]} 10. Nf1 {[%clk 0:03:02.2]} 10... Qb6 {[%clk 0:02:34.4]} 11. Ne3
{[%clk 0:03:01.5]} 11... Qxb2 {[%clk 0:02:17.8]} 12. O-O {[%clk 0:02:59.4]}
12... Qb5 {[%clk 0:02:16.9]} 13. Qd2 {[%clk 0:02:55.2]} 13... g6 {[%clk
0:01:57.4]} 14. Nxf5 {[%clk 0:02:51]} 14... gxf5 {[%clk 0:01:57.1]} 15. Bxe7
{[%clk 0:02:51]} 15... Kxe7 {[%clk 0:01:58]} 16. Qg5+ {[%clk 0:02:50.5]} 16...
Kd7 {[%clk 0:01:58.2]} 17. Qg7 {[%clk 0:02:48.1]} 17... Re8 {[%clk 0:01:58]} 18.
Qxf7+ {[%clk 0:02:46.9]} 18... Re7 {[%clk 0:01:58.7]} 19. Qxh5 {[%clk
0:02:47.3]} 19... Na6 {[%clk 0:01:57.8]} 20. Rab1 {[%clk 0:02:47.1]} 20... Qe2
{[%clk 0:01:54]} 21. Rxb7+ {[%clk 0:02:47.3]} 21... Nc7 {[%clk 0:01:54.7]} 22.
Qg5 {[%clk 0:02:39.5]} 22... Qxc2 {[%clk 0:01:46.5]} 23. Rxc7+ {[%clk 0:02:39]}
23... Kxc7 {[%clk 0:01:45.7]} 24. Qxe7+ {[%clk 0:02:39.7]} 24... Kb6 {[%clk
0:01:46.6]} 25. Qxe6 {[%clk 0:02:37.8]} 25... Rg8 {[%clk 0:01:45.6]} 26. Qxg8
{[%clk 0:02:35.5]} 1-0

[Event "Early-Titled-Tuesday-Blitz-August-29-2023"]
[Site "Chess.com"]
[Date "2023.08.29"]
[Round "3"]
[White "BahadirOzen"]
[Black "Chessbard1972"]
[Result "1/2-1/2"]
[WhiteElo "2809"]
[BlackElo "2548"]
[TimeControl "180+1"]
[EndTime "8:24:58 PDT"]
[Termination "Game drawn by repetition"]

1. g3 {[%clk 0:03:00.9]} 1... Nf6 {[%clk 0:02:59]} 2. Bg2 {[%clk 0:03:01]} 2...
g6 {[%clk 0:02:59.3]} 3. Nf3 {[%clk 0:02:53.3]} 3... Bg7 {[%clk 0:02:56.6]} 4.
O-O {[%clk 0:02:52.4]} 4... O-O {[%clk 0:02:56.8]} 5. d4 {[%clk 0:02:53]} 5...
d6 {[%clk 0:02:55.1]} 6. Nbd2 {[%clk 0:02:53.2]} 6... Nbd7 {[%clk 0:02:53.3]} 7.
e4 {[%clk 0:02:53.1]} 7... e5 {[%clk 0:02:53.4]} 8. dxe5 {[%clk 0:02:52.2]} 8...
dxe5 {[%clk 0:02:51.6]} 9. b3 {[%clk 0:02:50.3]} 9... Qe7 {[%clk 0:02:46.9]} 10.
a4 {[%clk 0:02:44.6]} 10... Re8 {[%clk 0:02:43.5]} 11. Ba3 {[%clk 0:02:44.5]}
11... Qd8 {[%clk 0:02:42.9]} 12. Re1 {[%clk 0:02:32]} 12... b6 {[%clk
0:02:39.2]} 13. Nc4 {[%clk 0:02:14.7]} 13... Bb7 {[%clk 0:02:36.4]} 14. Nfd2
{[%clk 0:02:13.3]} 14... h6 {[%clk 0:02:15.9]} 15. Qe2 {[%clk 0:02:12.7]} 15...
Kh7 {[%clk 0:02:11.7]} 16. Rad1 {[%clk 0:02:10]} 16... Qc8 {[%clk 0:02:10.2]}
17. Bh3 {[%clk 0:02:04.9]} 17... Qb8 {[%clk 0:02:04.3]} 18. f3 {[%clk
0:02:02.3]} 18... Nf8 {[%clk 0:02:02.8]} 19. Bb2 {[%clk 0:01:57.9]} 19... Nh5
{[%clk 0:01:58.9]} 20. Bg4 {[%clk 0:01:54.6]} 20... Nf6 {[%clk 0:01:47.1]} 21.
Bh3 {[%clk 0:01:55]} 21... Nh5 {[%clk 0:01:46.6]} 22. Bg4 {[%clk 0:01:49.5]}
22... Nf6 {[%clk 0:01:46.5]} 23. Bh3 {[%clk 0:01:50.2]} 1/2-1/2

[Event "Early-Titled-Tuesday-Blitz-August-29-2023"]
[Site "Chess.com"]
[Date "2023.08.29"]
[Round "3"]
[White "ArtemDyachuk"]
[Black "Guzman70"]
[Result "1-0"]
[WhiteElo "2583"]
[BlackElo "2372"]
[TimeControl "180+1"]
[EndTime "8:25:17 PDT"]
[Termination "ArtemDyachuk won by resignation"]

1. e4 {[%clk 0:03:00.9]} 1... e6 {[%clk 0:02:59.2]} 2. d4 {[%clk 0:02:59.5]}
2... d5 {[%clk 0:02:59.4]} 3. e5 {[%clk 0:02:55.4]} 3... c5 {[%clk 0:02:59.4]}
4. c3 {[%clk 0:02:55]} 4... Nc6 {[%clk 0:02:59.7]} 5. Nf3 {[%clk 0:02:53.9]}
5... Bd7 {[%clk 0:02:59.8]} 6. Be2 {[%clk 0:02:50.6]} 6... Nge7 {[%clk 0:02:59]}
7. Na3 {[%clk 0:02:48.3]} 7... Ng6 {[%clk 0:02:53.1]} 8. Nc2 {[%clk 0:02:45.3]}
8... cxd4 {[%clk 0:02:52.3]} 9. cxd4 {[%clk 0:02:46.2]} 9... Rc8 {[%clk
0:02:44]} 10. O-O {[%clk 0:02:44.4]} 10... Nb4 {[%clk 0:02:41.1]} 11. Nxb4
{[%clk 0:02:43.6]} 11... Bxb4 {[%clk 0:02:40]} 12. Be3 {[%clk 0:02:37.6]} 12...
O-O {[%clk 0:02:38.8]} 13. Bd3 {[%clk 0:02:31.8]} 13... f6 {[%clk 0:02:35.7]}
14. Qb3 {[%clk 0:02:18.8]} 14... Be7 {[%clk 0:02:28.8]} 15. Rac1 {[%clk
0:02:07.2]} 15... fxe5 {[%clk 0:02:22.1]} 16. Bxg6 {[%clk 0:02:04.9]} 16... exd4
{[%clk 0:02:12.6]} 17. Bxh7+ {[%clk 0:01:44.7]} 17... Kxh7 {[%clk 0:02:11.3]}
18. Bxd4 {[%clk 0:01:33]} 18... b6 {[%clk 0:01:58.3]} 19. Ne5 {[%clk 0:01:31.5]}
19... Be8 {[%clk 0:01:55.1]} 20. Qh3+ {[%clk 0:01:26.5]} 20... Kg8 {[%clk
0:01:51.8]} 21. Qxe6+ {[%clk 0:01:25.4]} 1-0

[Event "Early-Titled-Tuesday-Blitz-August-29-2023"]
[Site "Chess.com"]
[Date "2023.08.29"]
[Round "3"]
[White "Miguelitro69"]
[Black "jaskol95"]
[Result "0-1"]
[WhiteElo "2296"]
[BlackElo "2555"]
[TimeControl "180+1"]
[EndTime "8:25:26 PDT"]
[Termination "jaskol95 won by checkmate"]

1. e4 {[%clk 0:03:00.9]} 1... d5 {[%clk 0:02:59.4]} 2. exd5 {[%clk 0:03:00.3]}
2... Nf6 {[%clk 0:02:59.4]} 3. d4 {[%clk 0:03:00.2]} 3... Bg4 {[%clk 0:02:58.2]}
4. f3 {[%clk 0:02:57.8]} 4... Bf5 {[%clk 0:02:57.8]} 5. c4 {[%clk 0:02:57.3]}
5... e6 {[%clk 0:02:57.4]} 6. dxe6 {[%clk 0:02:55.3]} 6... Nc6 {[%clk
0:02:57.1]} 7. exf7+ {[%clk 0:02:52.3]} 7... Kxf7 {[%clk 0:02:57]} 8. d5 {[%clk
0:02:49.3]} 8... Nb4 {[%clk 0:02:56]} 9. Nc3 {[%clk 0:02:48.5]} 9... Nc2+ {[%clk
0:02:55.5]} 10. Kd2 {[%clk 0:01:56.1]} 10... Nxa1 {[%clk 0:02:52.2]} 11. Bd3
{[%clk 0:01:54.9]} 11... Bxd3 {[%clk 0:02:49.1]} 12. Kxd3 {[%clk 0:01:55.2]}
12... c6 {[%clk 0:02:46.8]} 13. Bg5 {[%clk 0:01:50.2]} 13... cxd5 {[%clk
0:02:45.4]} 14. Qxa1 {[%clk 0:01:50]} 14... dxc4+ {[%clk 0:02:45.4]} 15. Ke2
{[%clk 0:01:48.8]} 15... Qd3+ {[%clk 0:02:44]} 16. Kf2 {[%clk 0:01:47.7]} 16...
Bc5+ {[%clk 0:02:44]} 17. Kg3 {[%clk 0:01:44.4]} 17... Qg6 {[%clk 0:02:21.3]}
18. h4 {[%clk 0:01:14.6]} 18... h6 {[%clk 0:02:18.5]} 19. Qc1 {[%clk 0:01:06.6]}
19... hxg5 {[%clk 0:02:15]} 20. Nh3 {[%clk 0:00:57.4]} 20... gxh4+ {[%clk
0:02:14.3]} 21. Kf4 {[%clk 0:00:55]} 21... Qg3+ {[%clk 0:02:12.6]} 22. Kf5
{[%clk 0:00:54.2]} 22... g6# {[%clk 0:02:13]} 0-1

[Event "Early-Titled-Tuesday-Blitz-August-29-2023"]
[Site "Chess.com"]
[Date "2023.08.29"]
[Round "3"]
[White "druskacik"]
[Black "mikerahal"]
[Result "1-0"]
[WhiteElo "2691"]
[BlackElo "2312"]
[TimeControl "180+1"]
[EndTime "8:25:31 PDT"]
[Termination "druskacik won by resignation"]

1. c4 {[%clk 0:03:00.9]} 1... c5 {[%clk 0:02:56.8]} 2. g3 {[%clk 0:02:58.4]}
2... g6 {[%clk 0:02:56.1]} 3. Bg2 {[%clk 0:02:58.9]} 3... Bg7 {[%clk 0:02:55.9]}
4. Nc3 {[%clk 0:02:59.6]} 4... d6 {[%clk 0:02:54.9]} 5. Nf3 {[%clk 0:02:57.2]}
5... Nc6 {[%clk 0:02:54.1]} 6. b3 {[%clk 0:02:56.1]} 6... e5 {[%clk 0:02:47.8]}
7. O-O {[%clk 0:02:54]} 7... Nge7 {[%clk 0:02:47.7]} 8. Ne1 {[%clk 0:02:54]}
8... O-O {[%clk 0:02:46.3]} 9. Nc2 {[%clk 0:02:54.6]} 9... Be6 {[%clk
0:02:41.7]} 10. Ne3 {[%clk 0:02:55]} 10... Qd7 {[%clk 0:02:39.1]} 11. Re1 {[%clk
0:02:54.5]} 11... f5 {[%clk 0:02:38.6]} 12. Ned5 {[%clk 0:02:53.1]} 12... g5
{[%clk 0:02:21.8]} 13. d3 {[%clk 0:02:51.7]} 13... f4 {[%clk 0:02:15.9]} 14. e3
{[%clk 0:02:36.7]} 14... Ng6 {[%clk 0:02:09.6]} 15. Qh5 {[%clk 0:02:28.8]} 15...
Qd8 {[%clk 0:01:31]} 16. Ne4 {[%clk 0:02:22.3]} 16... g4 {[%clk 0:01:20.2]} 17.
Ng5 {[%clk 0:02:20.8]} 17... h6 {[%clk 0:01:02.3]} 18. Nxe6 {[%clk 0:02:17]}
18... Qe8 {[%clk 0:00:50.7]} 19. Nxf8 {[%clk 0:02:15]} 1-0

[Event "Early-Titled-Tuesday-Blitz-August-29-2023"]
[Site "Chess.com"]
[Date "2023.08.29"]
[Round "3"]
[White "Anton_Demchenko"]
[Black "fastestmindalive"]
[Result "1-0"]
[WhiteElo "2937"]
[BlackElo "2718"]
[TimeControl "180+1"]
[EndTime "8:25:43 PDT"]
[Termination "Anton_Demchenko won by checkmate"]

1. e4 {[%clk 0:03:00.9]} 1... c5 {[%clk 0:02:54.8]} 2. Nf3 {[%clk 0:02:59.5]}
2... e6 {[%clk 0:02:55.3]} 3. d4 {[%clk 0:02:59.1]} 3... cxd4 {[%clk 0:02:56.2]}
4. Nxd4 {[%clk 0:02:59.8]} 4... Bc5 {[%clk 0:02:56.9]} 5. Be3 {[%clk 0:02:47.8]}
5... Qb6 {[%clk 0:02:56.7]} 6. b4 {[%clk 0:02:48.3]} 6... Bxb4+ {[%clk
0:02:50.3]} 7. c3 {[%clk 0:02:48.1]} 7... Bc5 {[%clk 0:02:50.2]} 8. Nd2 {[%clk
0:02:48.8]} 8... d5 {[%clk 0:02:29.2]} 9. Rb1 {[%clk 0:02:45.3]} 9... Qc7 {[%clk
0:02:12.4]} 10. Qg4 {[%clk 0:02:40]} 10... e5 {[%clk 0:01:28.8]} 11. Nb5 {[%clk
0:02:31.5]} 11... Bxg4 {[%clk 0:00:43.9]} 12. Nxc7+ {[%clk 0:02:31.2]} 12... Kd8
{[%clk 0:00:44.1]} 13. Nxa8 {[%clk 0:02:31.5]} 13... Bxe3 {[%clk 0:00:43.2]} 14.
fxe3 {[%clk 0:02:32.2]} 14... b6 {[%clk 0:00:42.9]} 15. a4 {[%clk 0:02:22]}
15... Kc8 {[%clk 0:00:25.6]} 16. a5 {[%clk 0:02:20.8]} 16... Kb7 {[%clk
0:00:25.8]} 17. axb6 {[%clk 0:02:21.4]} 17... Kxa8 {[%clk 0:00:22.1]} 18. b7#
{[%clk 0:02:21.5]} 1-0

[Event "Early-Titled-Tuesday-Blitz-August-29-2023"]
[Site "Chess.com"]
[Date "2023.08.29"]
[Round "3"]
[White "Inepton_Fermion"]
[Black "Speshka"]
[Result "1-0"]
[WhiteElo "2386"]
[BlackElo "2567"]
[TimeControl "180+1"]
[EndTime "8:25:45 PDT"]
[Termination "Inepton_Fermion won by checkmate"]

1. Nf3 {[%clk 0:03:00.9]} 1... Nf6 {[%clk 0:02:56.5]} 2. b3 {[%clk 0:03:00.7]}
2... g6 {[%clk 0:02:56.5]} 3. Bb2 {[%clk 0:03:00.9]} 3... Bg7 {[%clk 0:02:57.4]}
4. g3 {[%clk 0:03:01.3]} 4... O-O {[%clk 0:02:57.2]} 5. Bg2 {[%clk 0:03:01.9]}
5... d6 {[%clk 0:02:57.4]} 6. d4 {[%clk 0:03:01.2]} 6... a5 {[%clk 0:02:52.5]}
7. a3 {[%clk 0:02:54.8]} 7... a4 {[%clk 0:02:50.2]} 8. b4 {[%clk 0:02:51]} 8...
b5 {[%clk 0:02:45.9]} 9. Nbd2 {[%clk 0:02:37.6]} 9... Bb7 {[%clk 0:02:44.9]} 10.
c4 {[%clk 0:02:33.6]} 10... Nbd7 {[%clk 0:02:37.5]} 11. cxb5 {[%clk 0:02:15]}
11... Nb6 {[%clk 0:02:37]} 12. e3 {[%clk 0:02:12.7]} 12... Qe8 {[%clk
0:02:27.6]} 13. Qe2 {[%clk 0:02:12.7]} 13... e5 {[%clk 0:02:19]} 14. dxe5 {[%clk
0:02:04.1]} 14... Ng4 {[%clk 0:02:16.3]} 15. O-O {[%clk 0:01:57.4]} 15... Nxe5
{[%clk 0:02:15.6]} 16. Rac1 {[%clk 0:01:33.5]} 16... Nxf3+ {[%clk 0:01:54.5]}
17. Nxf3 {[%clk 0:01:34.4]} 17... Bxb2 {[%clk 0:01:54.9]} 18. Qxb2 {[%clk
0:01:34.5]} 18... Qxb5 {[%clk 0:01:55.3]} 19. Nd4 {[%clk 0:01:19.8]} 19... Qa6
{[%clk 0:01:53]} 20. b5 {[%clk 0:01:20.2]} 20... Qa7 {[%clk 0:01:50.6]} 21. Rxc7
{[%clk 0:01:20.7]} 21... Rab8 {[%clk 0:01:40.8]} 22. Nc6 {[%clk 0:01:16.1]}
22... Qa8 {[%clk 0:01:40]} 23. Ne7# {[%clk 0:01:16.1]} 1-0

[Event "Early-Titled-Tuesday-Blitz-August-29-2023"]
[Site "Chess.com"]
[Date "2023.08.29"]
[Round "3"]
[White "CrazyAdvenTures"]
[Black "Sinquefield"]
[Result "0-1"]
[WhiteElo "2681"]
[BlackElo "2432"]
[TimeControl "180+1"]
[EndTime "8:26:01 PDT"]
[Termination "Sinquefield won by resignation"]

1. e4 {[%clk 0:03:00.9]} 1... e6 {[%clk 0:03:00.2]} 2. b3 {[%clk 0:02:57.3]}
2... d5 {[%clk 0:03:01.1]} 3. Bb2 {[%clk 0:02:57.7]} 3... dxe4 {[%clk
0:03:00.9]} 4. Nc3 {[%clk 0:02:57.8]} 4... Nf6 {[%clk 0:03:01.3]} 5. Qe2 {[%clk
0:02:57.8]} 5... Nc6 {[%clk 0:03:00.5]} 6. Nxe4 {[%clk 0:02:56.4]} 6... Nxe4
{[%clk 0:02:57.3]} 7. Qxe4 {[%clk 0:02:56.6]} 7... Qd5 {[%clk 0:02:57.8]} 8. Qe3
{[%clk 0:02:46]} 8... Bc5 {[%clk 0:02:56.2]} 9. Qg3 {[%clk 0:02:42.7]} 9... Bd4
{[%clk 0:02:48.5]} 10. O-O-O {[%clk 0:02:29.4]} 10... Bxb2+ {[%clk 0:02:44.6]}
11. Kxb2 {[%clk 0:02:30.3]} 11... O-O {[%clk 0:02:44.5]} 12. d4 {[%clk
0:02:23.1]} 12... b5 {[%clk 0:02:33]} 13. Ne2 {[%clk 0:02:10.9]} 13... b4 {[%clk
0:02:18]} 14. Nf4 {[%clk 0:02:10.2]} 14... Qa5 {[%clk 0:02:17.9]} 15. d5 {[%clk
0:01:49.4]} 15... Ne7 {[%clk 0:02:15.1]} 16. dxe6 {[%clk 0:01:43.1]} 16... Bxe6
{[%clk 0:02:16]} 17. Nxe6 {[%clk 0:01:41.1]} 17... fxe6 {[%clk 0:02:15.7]} 18.
Bc4 {[%clk 0:01:42]} 18... Nd5 {[%clk 0:02:13.3]} 19. Qe5 {[%clk 0:01:22.7]}
19... Qa3+ {[%clk 0:02:10.9]} 20. Ka1 {[%clk 0:01:16.3]} 20... Nc3 {[%clk
0:02:11.8]} 21. Qxe6+ {[%clk 0:01:10.1]} 21... Kh8 {[%clk 0:02:08.6]} 22. Qa6
{[%clk 0:01:11]} 22... Qxa6 {[%clk 0:01:45.6]} 23. Bxa6 {[%clk 0:01:10.7]} 23...
Rxf2 {[%clk 0:01:46]} 24. Rd7 {[%clk 0:01:05.8]} 24... Rxc2 {[%clk 0:01:44.1]}
0-1

[Event "Early-Titled-Tuesday-Blitz-August-29-2023"]
[Site "Chess.com"]
[Date "2023.08.29"]
[Round "3"]
[White "Aswathchess"]
[Black "Hope_6"]
[Result "1-0"]
[WhiteElo "2496"]
[BlackElo "2727"]
[TimeControl "180+1"]
[EndTime "8:26:03 PDT"]
[Termination "Aswathchess won by resignation"]

1. d4 {[%clk 0:03:00.9]} 1... d5 {[%clk 0:03:00.2]} 2. c4 {[%clk 0:03:00.1]}
2... dxc4 {[%clk 0:02:58.1]} 3. Nf3 {[%clk 0:02:58.6]} 3... Nf6 {[%clk
0:02:58.7]} 4. e3 {[%clk 0:02:58.4]} 4... e6 {[%clk 0:02:59.1]} 5. Bxc4 {[%clk
0:02:57.9]} 5... c5 {[%clk 0:02:59.1]} 6. O-O {[%clk 0:02:58]} 6... a6 {[%clk
0:02:59]} 7. a4 {[%clk 0:02:57.3]} 7... cxd4 {[%clk 0:02:57.8]} 8. Nxd4 {[%clk
0:02:57.2]} 8... Be7 {[%clk 0:02:52.8]} 9. Nc3 {[%clk 0:02:57.1]} 9... O-O
{[%clk 0:02:52.7]} 10. Qe2 {[%clk 0:02:55.4]} 10... b6 {[%clk 0:02:39.8]} 11.
Rd1 {[%clk 0:02:54.1]} 11... Qc7 {[%clk 0:02:39.6]} 12. b3 {[%clk 0:02:48.2]}
12... Bb7 {[%clk 0:02:38.6]} 13. Bb2 {[%clk 0:02:48.2]} 13... Nc6 {[%clk
0:02:37.7]} 14. Rac1 {[%clk 0:02:45.1]} 14... Rfd8 {[%clk 0:02:30.4]} 15. Nxc6
{[%clk 0:02:33.6]} 15... Qxc6 {[%clk 0:02:28.6]} 16. f3 {[%clk 0:02:33.1]} 16...
Qc5 {[%clk 0:02:18.6]} 17. Qf2 {[%clk 0:02:24.2]} 17... Qg5 {[%clk 0:02:09.7]}
18. Ne2 {[%clk 0:02:21.8]} 18... Bc5 {[%clk 0:02:00.3]} 19. Bd4 {[%clk
0:02:13.6]} 19... b5 {[%clk 0:01:50.6]} 20. h4 {[%clk 0:01:56.6]} 20... Qf5
{[%clk 0:01:26.2]} 21. Bd3 {[%clk 0:01:55.9]} 21... Rxd4 {[%clk 0:01:20.3]} 22.
exd4 {[%clk 0:01:46.9]} 22... Qd5 {[%clk 0:01:15.3]} 23. dxc5 {[%clk 0:01:43.5]}
23... Qxb3 {[%clk 0:01:15.6]} 24. c6 {[%clk 0:01:43.8]} 24... Bc8 {[%clk
0:01:14.7]} 25. Bc4 {[%clk 0:01:41.5]} 1-0

[Event "Early-Titled-Tuesday-Blitz-August-29-2023"]
[Site "Chess.com"]
[Date "2023.08.29"]
[Round "3"]
[White "musclemonster12"]
[Black "Truequitos"]
[Result "0-1"]
[WhiteElo "2571"]
[BlackElo "2397"]
[TimeControl "180+1"]
[EndTime "8:26:06 PDT"]
[Termination "Truequitos won by resignation"]

1. Nf3 {[%clk 0:03:00.9]} 1... Nf6 {[%clk 0:02:56.6]} 2. c4 {[%clk 0:03:01.8]}
2... d6 {[%clk 0:02:56.4]} 3. Nc3 {[%clk 0:03:01.1]} 3... e5 {[%clk 0:02:44.9]}
4. e4 {[%clk 0:02:59.2]} 4... g6 {[%clk 0:02:40.6]} 5. d4 {[%clk 0:02:59.1]}
5... exd4 {[%clk 0:02:40.5]} 6. Nxd4 {[%clk 0:02:56.9]} 6... Bg7 {[%clk
0:02:41.1]} 7. Be2 {[%clk 0:02:54.3]} 7... O-O {[%clk 0:02:41.5]} 8. O-O {[%clk
0:02:54.6]} 8... Re8 {[%clk 0:02:41.5]} 9. f3 {[%clk 0:02:48.3]} 9... Nc6 {[%clk
0:02:32.8]} 10. Nxc6 {[%clk 0:02:45.7]} 10... bxc6 {[%clk 0:02:32.5]} 11. Bg5
{[%clk 0:02:46.6]} 11... Rb8 {[%clk 0:02:27.7]} 12. Qd2 {[%clk 0:02:45.8]} 12...
Ba6 {[%clk 0:01:51.2]} 13. Rad1 {[%clk 0:02:44]} 13... Qc8 {[%clk 0:01:40.8]}
14. b3 {[%clk 0:02:43.8]} 14... Nh5 {[%clk 0:01:36.4]} 15. f4 {[%clk 0:02:36.9]}
15... Nf6 {[%clk 0:01:32.8]} 16. Bf3 {[%clk 0:02:36.6]} 16... Nd7 {[%clk
0:01:21.1]} 17. Rfe1 {[%clk 0:02:35]} 17... Nc5 {[%clk 0:01:19.8]} 18. Bh4
{[%clk 0:02:33.4]} 18... Ne6 {[%clk 0:01:17.4]} 19. Bf2 {[%clk 0:02:21.1]} 19...
Bh6 {[%clk 0:01:13.2]} 20. g3 {[%clk 0:02:20.2]} 20... Qb7 {[%clk 0:00:59.7]}
21. h4 {[%clk 0:02:11.9]} 21... Qb4 {[%clk 0:00:56.4]} 22. Qc2 {[%clk 0:01:56]}
22... Bg7 {[%clk 0:00:52.2]} 23. Rd4 {[%clk 0:01:56.1]} 23... Nxd4 {[%clk
0:00:50.8]} 0-1

[Event "Early-Titled-Tuesday-Blitz-August-29-2023"]
[Site "Chess.com"]
[Date "2023.08.29"]
[Round "3"]
[White "Maili15"]
[Black "tk22h"]
[Result "1-0"]
[WhiteElo "2343"]
[BlackElo "2464"]
[TimeControl "180+1"]
[EndTime "8:26:11 PDT"]
[Termination "Maili15 won by resignation"]

1. e4 {[%clk 0:03:00.9]} 1... e5 {[%clk 0:02:59.7]} 2. Nf3 {[%clk 0:03:01.4]}
2... Nc6 {[%clk 0:02:59.3]} 3. Bb5 {[%clk 0:03:02]} 3... a6 {[%clk 0:02:59.2]}
4. Ba4 {[%clk 0:03:02.3]} 4... Nf6 {[%clk 0:02:59.4]} 5. O-O {[%clk 0:03:02.6]}
5... Be7 {[%clk 0:02:59.6]} 6. d3 {[%clk 0:03:02.9]} 6... d6 {[%clk 0:02:58.7]}
7. h3 {[%clk 0:03:01.9]} 7... b5 {[%clk 0:02:58.6]} 8. Bb3 {[%clk 0:03:01.8]}
8... O-O {[%clk 0:02:58.6]} 9. c3 {[%clk 0:03:01.9]} 9... Na5 {[%clk 0:02:58.3]}
10. Bc2 {[%clk 0:03:01.8]} 10... c5 {[%clk 0:02:58.7]} 11. Re1 {[%clk
0:03:02.2]} 11... Nc6 {[%clk 0:02:58.9]} 12. Nbd2 {[%clk 0:03:02.2]} 12... h6
{[%clk 0:02:59.2]} 13. Nf1 {[%clk 0:03:02.3]} 13... Re8 {[%clk 0:02:59.5]} 14.
a4 {[%clk 0:03:02.6]} 14... Rb8 {[%clk 0:02:54.6]} 15. axb5 {[%clk 0:03:01.8]}
15... axb5 {[%clk 0:02:55]} 16. Ng3 {[%clk 0:03:00.7]} 16... Bf8 {[%clk
0:02:53.2]} 17. Nh4 {[%clk 0:02:39.7]} 17... Nxe4 {[%clk 0:02:36.6]} 18. Rxe4
{[%clk 0:02:37.4]} 18... d5 {[%clk 0:02:36.6]} 19. Rg4 {[%clk 0:02:30.8]} 19...
Bxg4 {[%clk 0:02:35.4]} 20. Qxg4 {[%clk 0:02:31.7]} 20... g6 {[%clk 0:02:09.3]}
21. Nxg6 {[%clk 0:02:26.7]} 21... fxg6 {[%clk 0:02:09.1]} 22. Qxg6+ {[%clk
0:02:26.7]} 22... Bg7 {[%clk 0:02:07]} 23. Bxh6 {[%clk 0:02:25.1]} 23... Qf6
{[%clk 0:02:05.4]} 24. Qxf6 {[%clk 0:02:05.2]} 24... Bxf6 {[%clk 0:02:05]} 25.
Ra6 {[%clk 0:02:02.4]} 25... Rec8 {[%clk 0:02:00]} 26. Bb3 {[%clk 0:01:33.4]}
26... Kh7 {[%clk 0:02:00.1]} 27. Bxd5 {[%clk 0:01:25.1]} 27... Kxh6 {[%clk
0:01:58.8]} 28. Bxc6 {[%clk 0:01:23.8]} 28... Kg7 {[%clk 0:01:58.9]} 29. Be4
{[%clk 0:01:19.8]} 29... b4 {[%clk 0:01:56.6]} 30. Nh5+ {[%clk 0:01:19.5]} 30...
Kf7 {[%clk 0:01:55.8]} 31. Rxf6+ {[%clk 0:01:14.2]} 31... Ke7 {[%clk 0:01:55.9]}
32. Rf5 {[%clk 0:01:09.6]} 32... bxc3 {[%clk 0:01:55.1]} 33. bxc3 {[%clk
0:01:09.3]} 33... Kd6 {[%clk 0:01:52.1]} 34. c4 {[%clk 0:01:07.2]} 1-0